[Event "European Corporate Championship 2022"]
[Site "Rotterdam"]
[Date "2022.06.19"]
[Round "5.7"]
[White "Wisniewski, Jacek"]
[Black "Lie, Michael"]
[Result "1-0"]
[ECO "B27"]
[WhiteElo "1850"]
[BlackElo "1798"]
[Annotator "NA RC"]
[PlyCount "51"]
[EventDate "2022.06.18"]
[EventType "team-tourn"]
[EventCountry "NED"]
[SourceTitle "playchess.com"]
[Source "ChessBase"]
[SourceQuality "1"]
[TimeControl "900+5"]

1. e4 {[%emt 0:00:02]} c5 {[%emt 0:00:04]} 2. Nf3 {[%emt 0:00:04]} g6 {[%emt 0:00:04]} 3. d4 {[%emt 0:00:04]} cxd4 {[%emt 0:00:02]} 4. Qxd4 {[%emt 0:00:04]} Nf6 {[%emt 0:00:03]} 5. e5 {[%emt 0:00:03]} Nc6 {[%emt 0:00:03]} 6. Qa4 {[%emt 0:00:03]} Nd5 {[%emt 0:00:18]} 7. Qe4 {[%emt 0:00:06]} Nb6 {[%emt 0:00:15]} 8. Bf4 {[%emt 0:00:45]} Bg7 {[%emt 0:00:05]} 9. Nc3 {[%emt 0:00:24]} O-O {[%emt 0:00:43]} 10. O-O-O {[%emt 0:01:28]} d5 {[%emt 0:04:59]} 11. exd6 {[%emt 0:01:45]} Bf5 {[%emt 0:00:15]} 12. Qe3 {[%emt 0:00:54]} e5 {[%emt 0:02:21]} 13. Bh6 {[%emt 0:02:09]} Re8 {[%emt 0:01:47]} 14. Bxg7 {[%emt 0:00:09]} Kxg7 {[%emt 0:00:01]} 15. Bd3 {[%emt 0:01:46]} e4 {[%emt 0:00:45]} 16. Bxe4 {[%emt 0:00:25]} Bxe4 {[%emt 0:00:02]} 17. Nxe4 {[%emt 0:00:04]} f6 {[%emt 0:01:23]} 18. Rhe1 {[%emt 0:00:27]} Rc8 {[%emt 0:00:22]} 19. Qb3 {[%emt 0:00:57]} Na5 {[%emt 0:02:13]} 20. Qb5 {[%emt 0:00:59]} Nd7 {[%emt 0:00:16]} 21. Nc3 {[%emt 0:00:36]} Rc5 {[%emt 0:00:12]} 22. Qd3 {[%emt 0:00:27]} Ne5 {[%emt 0:00:20]} 23. Nxe5 {[%emt 0:00:31]} Rcxe5 {[%emt 0:00:01]} 24. Rxe5 {[%emt 0:00:28]} Rxe5 {[%emt 0:00:01]} 25. f4 {[%emt 0:00:39]} Re8 {[%emt 0:00:18]} 26. Qd5 {[%emt 0:00:15]} 1-0

[Event "European Corporate Championship 2022"]
[Site "Rotterdam"]
[Date "2022.06.19"]
[Round "5.9"]
[White "Schelvis, Richard"]
[Black "Haast, Mark"]
[Result "1/2-1/2"]
[ECO "A46"]
[WhiteElo "2157"]
[BlackElo "2414"]
[Annotator "TA"]
[PlyCount "92"]
[EventDate "2022.06.18"]
[EventType "team-tourn"]
[EventCountry "NED"]
[SourceTitle "playchess.com"]
[Source "ChessBase"]
[SourceQuality "1"]
[TimeControl "900+5"]

{[%evp 9,92,6,27,18,28,6,49,27,55,20,37,22,38,30,24,-6,-14,-60,28,0,0,4,10,7,8,12,14,17,16,-2,8,0,20,9,28,29,38,29,36,0,0,0,0,-2,-3,-27,0,0,9,0,22,22,22,22,33,33,51,41,41,41,107,41,51,21,21,7,10,1,1,1,71,72,73,74,93,93,121,0,0,0,0,0,0,0,0]} 1. d4 {[%emt 0:00:02]} Nf6 {[%emt 0:00:01]} 2. Nf3 {[%emt 0:00:07]} e6 {[%emt 0:00:02]} 3. g3 {[%emt 0:00:02]} b5 {[%emt 0:00:02]} 4. Qd3 {[%emt 0:00:27]} b4 {[%emt 0:00:46]} 5. c4 {[%emt 0:00:38]} bxc3 {[%emt 0:00:03]} 6. Nxc3 {[%emt 0:00:02] A46: 1 d4 Nf6 2 Nf3 e6: Torre, London and Colle Systems.} c5 {[%emt 0:00:19] [#]} 7. Bg2 $146 {[%emt 0:01:32]} ({Predecessor:} 7. d5 Ba6 8. Qd2 Qa5 9. e4 c4 10. Bg2 Bb4 11. Nh4 Bb7 12. O-O Na6 13. a3 Bxc3 14. bxc3 {0-1 (25) Shvidler,E (2410)-Soffer,R (2365) Tel Aviv 1989}) 7... Bb7 {[%emt 0:00:36]} (7... Ba6 $5 {[%cal Ra6d3]} 8. Qd1 cxd4 9. Nxd4 d5 $14) 8. O-O {[%emt 0:00:18] White is slightly better.} cxd4 {[%emt 0:00:06]} 9. Qxd4 {[%emt 0:00:08]} (9. Nxd4 $5 {[%cal Rg2b7]} Bxg2 10. Kxg2 $14) 9... Nc6 {[%emt 0:00:15]} 10. Qa4 {[%emt 0:00:07]} Be7 {[%emt 0:02:53]} 11. Bf4 {[%emt 0:02:45]} O-O {[%emt 0:00:24]} 12. Rad1 {[%emt 0:00:27]} Qb6 {[%emt 0:00:23]} 13. Be3 {[%emt 0:02:03]} (13. Ne5 $11 Nxe5 14. Bxb7 Qxb7 15. Bxe5) 13... Qa6 {[%emt 0:01:07]} (13... Qxb2 $15 14. Rb1 Qxc3 15. Rxb7 Rab8) 14. Nd4 {[%emt 0:00:56]} Qxa4 {[%emt 0:03:03]} 15. Nxa4 {[%emt 0:00:04]} d5 {[%emt 0:00:13]} 16. Rc1 {[%emt 0:00:43]} Rfc8 {[%emt 0:00:38]} 17. Nc5 {[%emt 0:00:20]} Nxd4 {[%emt 0:00:43]} 18. Bxd4 {[%emt 0:00:08]} Bc6 {[%emt 0:00:23]} 19. Rfd1 {[%emt 0:00:43]} a5 {[%emt 0:01:16]} 20. Rc2 {[%emt 0:00:50]} Bxc5 {[%emt 0:01:16]} 21. Bxc5 {[%emt 0:00:37]} Ba4 {[%emt 0:00:13]} 22. b3 {[%emt 0:00:09]} Bb5 {[%emt 0:00:01]} 23. Rdc1 {[%emt 0:00:26]} a4 {[%emt 0:00:10]} 24. e3 {[%emt 0:00:35]} axb3 {[%emt 0:00:04]} 25. axb3 {[%emt 0:00:01]} Ne4 {[%emt 0:01:34]} 26. Bxe4 {[%emt 0:00:16]} dxe4 {[%emt 0:00:01]} 27. b4 {[%emt 0:00:04]} Bd3 {[%emt 0:00:04]} 28. Rc3 {[%emt 0:00:06]} f5 {[%emt 0:00:05]} 29. h4 {[%emt 0:00:16]} Kf7 {[%emt 0:00:30]} 30. Bd4 {[%emt 0:00:25]} Rxc3 {[%emt 0:00:01]} 31. Rxc3 $11 {[%emt 0:00:01][%mdl 4096] Endgame KRB-KRB} Ra1+ {[%emt 0:00:03]} 32. Kg2 {[%emt 0:00:55] [#] Threatens to win with Rc7+.} Rb1 {[%emt 0:00:01]} 33. Rc7+ {[%emt 0:00:05]} Ke8 {[%emt 0:00:01]} 34. g4 {[%emt 0:00:39]} fxg4 {[%emt 0:00:06] [#]} (34... Be2 $14) 35. Rxg7 {[%emt 0:00:01]} ({White should play} 35. Bc5 $1 $16) 35... Rxb4 $14 {[%emt 0:00:11]} 36. Rxg4 {[%emt 0:00:14]} h5 {[%emt 0:00:04]} 37. Rg8+ {[%emt 0:00:13]} Kd7 {[%emt 0:00:02]} 38. Rg7+ {[%emt 0:00:02]} Kd6 {[%emt 0:00:04]} 39. Rg5 {[%emt 0:00:01] Hoping for Bc5+.} Rb7 {[%emt 0:00:05]} (39... Rb5 $11) 40. Rxh5 {[%emt 0:00:05]} Be2 {[%emt 0:00:01]} 41. Rg5 {[%emt 0:00:03]} Bf3+ {[%emt 0:00:02]} 42. Kg3 {[%emt 0:00:03] And now Be5+ would win.} Rb1 {[%emt 0:00:01]} 43. Ra5 {[%emt 0:00:17]} (43. Be5+ $16 Ke7 44. Kf4) 43... Rg1+ $11 {[%emt 0:00:02] The position is equal.} 44. Kh2 {[%emt 0:00:00]} Rh1+ {[%emt 0:00:01]} ({Don't play} 44... Rg2+ 45. Kh3 Ke7 46. Rg5 Rxg5 47. hxg5 $16) 45. Kg3 {[%emt 0:00:01]} Rg1+ {[%emt 0:00:01]} 46. Kh2 {[%emt 0:00:01]} Rh1+ {[%emt 0:00:01] Weighted Error Value: White=0.14 (very precise) /Black=0.15 (very precise)} ({Much less strong is} 46... Rg2+ 47. Kh3 $16) 1/2-1/2

[Event "European Corporate Championship 2022"]
[Site "Rotterdam"]
[Date "2022.06.19"]
[Round "5.10"]
[White "Schouten, Jordy"]
[Black "Jap Tjoen San, Linda"]
[Result "1-0"]
[ECO "B07"]
[WhiteElo "2121"]
[BlackElo "2045"]
[Annotator "NA RC"]
[PlyCount "79"]
[EventDate "2022.06.18"]
[EventType "team-tourn"]
[EventCountry "NED"]
[SourceTitle "playchess.com"]
[Source "ChessBase"]
[SourceQuality "1"]
[TimeControl "900+5"]

1. e4 {[%emt 0:00:02]} d6 {[%emt 0:00:07]} 2. d4 {[%emt 0:00:02]} Nf6 {[%emt 0:00:01]} 3. Nc3 {[%emt 0:00:01]} Nbd7 {[%emt 0:00:25]} 4. f4 {[%emt 0:00:03]} c6 {[%emt 0:00:02]} 5. Nf3 {[%emt 0:00:03]} b5 {[%emt 0:00:39]} 6. e5 {[%emt 0:01:10]} b4 {[%emt 0:02:26]} 7. Na4 {[%emt 0:01:13]} Nd5 {[%emt 0:00:56]} 8. Bc4 {[%emt 0:00:09]} N7b6 {[%emt 0:00:56]} 9. Nxb6 {[%emt 0:00:06]} axb6 {[%emt 0:00:16]} 10. O-O {[%emt 0:00:15]} e6 {[%emt 0:00:10]} 11. Qe1 {[%emt 0:01:37]} Be7 {[%emt 0:01:46]} 12. Bd2 {[%emt 0:02:41]} c5 {[%emt 0:01:56]} 13. f5 {[%emt 0:00:28]} dxe5 {[%emt 0:00:50]} 14. Nxe5 {[%emt 0:01:39]} Nf6 {[%emt 0:02:12]} 15. Bb5+ {[%emt 0:03:41]} Kf8 {[%emt 0:00:02]} 16. Nc6 {[%emt 0:00:26]} Qd5 {[%emt 0:00:03]} 17. Nxe7 {[%emt 0:00:08]} Kxe7 {[%emt 0:00:01]} 18. Kh1 {[%emt 0:01:55]} Bb7 {[%emt 0:00:02]} 19. Qe2 {[%emt 0:00:09]} Qxd4 {[%emt 0:01:35]} 20. fxe6 {[%emt 0:00:10]} fxe6 {[%emt 0:00:01]} 21. Rae1 {[%emt 0:00:04]} Qe4 {[%emt 0:00:05]} 22. Qf2 {[%emt 0:00:07]} Qd5 {[%emt 0:00:10]} 23. b3 {[%emt 0:00:05]} Qd4 {[%emt 0:00:14]} 24. Be3 {[%emt 0:00:13]} Qg4 {[%emt 0:00:27]} 25. Bc4 {[%emt 0:00:11]} Rhe8 {[%emt 0:00:20]} 26. Bf4 {[%emt 0:00:17]} Kf7 {[%emt 0:00:04]} 27. Be5 {[%emt 0:00:03]} Qg5 {[%emt 0:00:07]} 28. h4 {[%emt 0:00:13]} Qh6 {[%emt 0:00:04]} 29. Bf4 {[%emt 0:00:05]} Qg6 {[%emt 0:00:16]} 30. Bd3 {[%emt 0:00:01]} Qh5 {[%emt 0:00:01]} 31. Bg5 {[%emt 0:00:01]} Kg8 {[%emt 0:00:17]} 32. Bxf6 {[%emt 0:00:08]} Rf8 {[%emt 0:00:03]} 33. Rxe6 {[%emt 0:00:03]} Qg4 {[%emt 0:00:16]} 34. Bc4 {[%emt 0:00:05]} Kh8 {[%emt 0:00:07]} 35. Rxb6 {[%emt 0:00:05]} gxf6 {[%emt 0:00:19]} 36. Rxb7 {[%emt 0:00:08]} Rad8 {[%emt 0:00:06]} 37. Qf4 {[%emt 0:00:06]} Qh5 {[%emt 0:00:09]} 38. Kg1 {[%emt 0:00:12]} Rd4 {[%emt 0:00:44]} 39. Qc7 {[%emt 0:00:03]} Rd2 {[%emt 0:00:00]} 40. Qg7# {[%emt 0:00:03]} 1-0

[Event "European Corporate Championship 2022"]
[Site "Rotterdam"]
[Date "2022.06.19"]
[Round "5.11"]
[White "Hol, Camile"]
[Black "IJzermans, Cees"]
[Result "0-1"]
[ECO "B16"]
[WhiteElo "2000"]
[BlackElo "2115"]
[Annotator "NA RC"]
[PlyCount "80"]
[EventDate "2022.06.18"]
[EventType "team-tourn"]
[EventCountry "NED"]
[SourceTitle "playchess.com"]
[Source "ChessBase"]
[SourceQuality "1"]
[TimeControl "900+5"]

1. e4 {[%emt 0:00:03]} c6 {[%emt 0:00:15]} 2. d4 {[%emt 0:00:04]} d5 {[%emt 0:00:12]} 3. Nc3 {[%emt 0:00:08]} dxe4 {[%emt 0:00:07]} 4. Nxe4 {[%emt 0:00:08]} Nf6 {[%emt 0:00:03]} 5. Nxf6+ {[%emt 0:00:19]} gxf6 {[%emt 0:00:03]} 6. Nf3 {[%emt 0:00:14]} Bg4 {[%emt 0:00:20]} 7. Be2 {[%emt 0:00:49]} Nd7 {[%emt 0:00:12]} 8. Bf4 {[%emt 0:00:22]} e6 {[%emt 0:00:30]} 9. Qd2 {[%emt 0:00:39]} Nb6 {[%emt 0:00:16]} 10. O-O {[%emt 0:00:43]} Bd6 {[%emt 0:00:07]} 11. Rad1 {[%emt 0:01:04]} Qc7 {[%emt 0:00:49]} 12. Bxd6 {[%emt 0:00:49]} Qxd6 {[%emt 0:00:03]} 13. Qh6 {[%emt 0:01:29]} Nd5 {[%emt 0:01:21]} 14. Qg7 {[%emt 0:00:36]} O-O-O {[%emt 0:01:01]} 15. Qxg4 {[%emt 0:00:12]} Nf4 {[%emt 0:04:30]} 16. Nh4 {[%emt 0:01:03]} Rdg8 {[%emt 0:00:25]} 17. Qf3 {[%emt 0:00:07]} h5 {[%emt 0:00:59]} 18. g3 {[%emt 0:00:40]} Rg4 {[%emt 0:00:10]} 19. Kh1 {[%emt 0:00:23]} Rhg8 {[%emt 0:01:11]} 20. gxf4 {[%emt 0:02:01]} Rxh4 {[%emt 0:00:02]} 21. Rg1 {[%emt 0:00:11]} Rxg1+ {[%emt 0:00:02]} 22. Rxg1 {[%emt 0:00:02]} Rxf4 {[%emt 0:00:01]} 23. Qg3 {[%emt 0:00:19]} Qd5+ {[%emt 0:00:55]} 24. Qg2 {[%emt 0:00:38]} Rxf2 {[%emt 0:00:46]} 25. Qxd5 {[%emt 0:00:21]} cxd5 {[%emt 0:00:02]} 26. Bd3 {[%emt 0:00:15]} e5 {[%emt 0:00:31]} 27. dxe5 {[%emt 0:00:40]} fxe5 {[%emt 0:00:01]} 28. Rf1 {[%emt 0:00:02]} Rd2 {[%emt 0:01:06]} 29. Bf5+ {[%emt 0:01:37]} Kd8 {[%emt 0:00:13]} 30. Kg1 {[%emt 0:00:01]} e4 {[%emt 0:00:09]} 31. Rc1 {[%emt 0:00:23]} Ke7 {[%emt 0:00:13]} 32. c4 {[%emt 0:00:06]} Kf6 {[%emt 0:00:07]} 33. Bh7 {[%emt 0:00:07]} Kg7 {[%emt 0:00:10]} 34. Bf5 {[%emt 0:00:06]} Kf6 {[%emt 0:00:04]} 35. Bc8 {[%emt 0:00:13]} d4 {[%emt 0:00:08]} 36. Bxb7 {[%emt 0:00:04]} e3 {[%emt 0:00:01]} 37. Bf3 {[%emt 0:00:18]} d3 {[%emt 0:00:48]} 38. Re1 {[%emt 0:00:31]} e2 {[%emt 0:00:02]} 39. Kf2 {[%emt 0:00:17]} Rxb2 {[%emt 0:00:13]} 40. Bxe2 {[%emt 0:00:11]} Rxa2 {[%emt 0:00:05]} 0-1

[Event "European Corporate Championship 2022"]
[Site "Rotterdam"]
[Date "2022.06.19"]
[Round "5.13"]
[White "Giri, Anish"]
[Black "Vistisen, Lars"]
[Result "0-1"]
[ECO "A67"]
[WhiteElo "2761"]
[BlackElo "2080"]
[Annotator "TA"]
[PlyCount "88"]
[EventDate "2022.06.18"]
[EventType "team-tourn"]
[EventCountry "NED"]
[SourceTitle "playchess.com"]
[Source "ChessBase"]
[SourceQuality "1"]
[TimeControl "900+5"]

{[%evp 18,88,44,43,52,52,53,54,79,72,87,65,61,57,57,30,49,41,89,93,107,0,-8,-33,-37,-25,-26,-50,199,-83,-8,-65,0,0,0,0,0,0,0,0,0,0,0,0,0,-57,-54,-124,-62,-177,-174,-164,-177,-547,-533,-533,-507,-1072,-29971,-29971,-29972,-29972,-29973,-29972,-29965,-29967,-29968,-29975,-29975,-29982,-29983,-29968,-29968]} 1. d4 {[%emt 0:00:01]} Nf6 {[%emt 0:00:02]} 2. c4 {[%emt 0:00:02]} c5 {[%emt 0:00:01]} 3. d5 {[%emt 0:00:02]} e6 {[%emt 0:00:03]} 4. Nc3 {[%emt 0:00:03]} exd5 {[%emt 0:00:02]} 5. cxd5 {[%emt 0:00:02]} d6 {[%emt 0:00:03]} 6. e4 {[%emt 0:00:02]} g6 {[%emt 0:00:09]} 7. f4 {[%emt 0:00:06]} Bg7 {[%emt 0:00:18]} 8. Bb5+ {[%emt 0:00:04]} Nfd7 {[%emt 0:00:06]} 9. Bd3 {[%emt 0:00:18]} Qh4+ {[%emt 0:00:41]} 10. g3 {[%emt 0:00:02]} Qe7 {[%emt 0:01:42] A67: Modern Benoni: Taimanov Variation.} 11. Nf3 {[%emt 0:00:03]} O-O {[%emt 0:03:18]} 12. O-O {[%emt 0:00:03]} a6 {[%emt 0:01:59] White is slightly better.} 13. a4 $1 {[%emt 0:00:04] Against b5} Nf6 {[%emt 0:00:11]} 14. e5 {[%emt 0:00:23] has lost popularity (14.Kg2).} Ne8 {[%emt 0:00:59]} 15. e6 {[%emt 0:00:59]} fxe6 {[%emt 0:00:22]} 16. dxe6 {[%emt 0:00:04] [#]} Bxe6 $146 {[%emt 0:00:42]} ({Predecessor:} 16... Nc7 17. f5 gxf5 18. Nh4 Bxe6 19. Nxf5 Bxf5 20. Bxf5 Nd7 21. Qg4 Nf6 22. Qh4 Rf7 {1-0 (36) David,E (2192)-Dannevig,O (2329) Oslo 2006}) 17. Re1 {[%emt 0:00:14]} Nc7 {[%emt 0:00:10]} (17... Qd7 $14) 18. Ng5 $1 $16 {[%emt 0:00:24]} Bd4+ {[%emt 0:00:34]} 19. Be3 {[%emt 0:00:27]} (19. Kh1 $16 {And now Bc4 would win.} Bxc3 20. bxc3 Bd5+ 21. Kg1) 19... Nc6 $11 {[%emt 0:00:15]} 20. Nxe6 {[%emt 0:00:06]} (20. Be4 $5 {[%cal Re3d4]}) 20... Nxe6 {[%emt 0:00:43]} 21. Bc4 {[%emt 0:00:01]} Rae8 {[%emt 0:00:45]} 22. Qg4 {[%emt 0:01:15] Strongly threatening Bxd4.} Rf5 $2 {[%emt 0:00:23]} (22... Qd7 $1 $15 {stays ahead.}) 23. Rad1 $2 {[%emt 0:01:34] [#]} (23. Bxe6+ $18 Qxe6 24. Bxd4 Qxe1+ 25. Rxe1 Rxe1+ 26. Kf2 cxd4 27. Kxe1 dxc3 28. bxc3) 23... Qg7 {[%emt 0:00:06]} (23... Qd7 $1 $17 24. Bd5 Kg7) 24. Kg2 {[%emt 0:03:09]} (24. Bxd4 $11 Ncxd4 25. Re3 (25. Bxe6+ Rxe6 26. Rxe6 Nxe6 $15)) 24... Kf8 {[%emt 0:00:05]} (24... Bxc3 $15 25. bxc3 Qxc3) 25. Bxe6 {[%emt 0:00:14]} Rxe6 {[%emt 0:00:22]} 26. Bxd4 {[%emt 0:00:01]} Nxd4 {[%emt 0:00:22]} 27. Rxe6 {[%emt 0:00:01]} Nxe6 {[%emt 0:00:09]} 28. Rxd6 {[%emt 0:00:01]} Qe7 {[%emt 0:00:32]} 29. Rd3 {[%emt 0:00:26]} Nd4 {[%emt 0:00:07]} 30. Qd1 {[%emt 0:00:07] Against Nc2} Qe6 {[%emt 0:00:21]} 31. h4 {[%emt 0:00:21]} ({Much worse is} 31. Rxd4 cxd4 32. Qxd4 Qc6+ 33. Kf2 Qc5 $17) (31. Kf2 $11) 31... Rf7 $1 $15 {[%emt 0:00:11]} 32. Qf1 {[%emt 0:00:45]} (32. a5 $15) 32... Re7 {[%emt 0:00:23] 0x0.002229450f6ddp-1022s more active pieces.} (32... b6 $17 33. Kh2 Re7) 33. Kh2 {[%emt 0:00:05] [#]} (33. a5 $15) 33... b5 $1 $19 {[%emt 0:00:08] aiming for ...b4.} 34. axb5 {[%emt 0:00:01]} axb5 {[%emt 0:00:02][%cal Ba6b5,Bb5b4][%mdl 32] White must now prevent ...b4.} 35. Qg2 $2 {[%emt 0:00:32]} (35. f5 gxf5 36. Rd2) 35... b4 {[%emt 0:00:04]} 36. Nd5 {[%emt 0:00:03] Hoping for Re3.} Rd7 {[%emt 0:00:19]} 37. Ne3 {[%emt 0:00:27] [#]} (37. Nc3 $142 bxc3 38. bxc3) 37... Nf3+ $1 {[%emt 0:00:19][%mdl 512]} 38. Qxf3 {[%emt 0:00:02] Black mates.} Rxd3 {[%emt 0:00:03] KQR-KQN} 39. Qa8+ {[%emt 0:00:01]} Qe8 {[%emt 0:00:05]} 40. Qxe8+ {[%emt 0:00:34]} Kxe8 {[%emt 0:00:01]} 41. Nc4 {[%emt 0:00:01]} Rd4 {[%emt 0:00:03]} 42. Ne5 {[%emt 0:00:05]} Rd2+ {[%emt 0:00:04]} 43. Kh3 {[%emt 0:00:01]} Rxb2 {[%emt 0:00:01]} 44. Nd3 {[%emt 0:00:01]} Rc2 {[%emt 0:00:03] Weighted Error Value: White=0.47/Black=0.29 (precise)} 0-1

[Event "European Corporate Championship 2022"]
[Site "Rotterdam"]
[Date "2022.06.19"]
[Round "5.14"]
[White "Heer, Stephan"]
[Black "Geldhof, Alexander"]
[Result "1-0"]
[ECO "A04"]
[WhiteElo "2047"]
[BlackElo "1833"]
[Annotator "NA RC"]
[PlyCount "55"]
[EventDate "2022.06.18"]
[EventType "team-tourn"]
[EventCountry "NED"]
[SourceTitle "playchess.com"]
[Source "ChessBase"]
[SourceQuality "1"]
[TimeControl "900+5"]

1. Nf3 {[%emt 0:00:02]} Nc6 {[%emt 0:00:02]} 2. g3 {[%emt 0:00:00]} e5 {[%emt 0:00:13]} 3. d3 {[%emt 0:00:01]} Bc5 {[%emt 0:00:08]} 4. Bg2 {[%emt 0:00:02]} Nge7 {[%emt 0:00:30]} 5. e4 {[%emt 0:00:18]} d6 {[%emt 0:00:19]} 6. O-O {[%emt 0:00:03]} Bg4 {[%emt 0:00:07]} 7. h3 {[%emt 0:00:11]} Bh5 {[%emt 0:00:10]} 8. c3 {[%emt 0:00:07]} Qd7 {[%emt 0:00:29]} 9. Nbd2 {[%emt 0:00:14]} O-O {[%emt 0:01:11]} 10. b4 {[%emt 0:00:34]} Bb6 {[%emt 0:00:11]} 11. Bb2 {[%emt 0:00:16]} Bg6 {[%emt 0:01:54]} 12. Nh4 {[%emt 0:01:33]} a6 {[%emt 0:00:58]} 13. Nc4 {[%emt 0:01:52]} Ba7 {[%emt 0:00:30]} 14. a3 {[%emt 0:01:14]} f5 {[%emt 0:01:29]} 15. Nxg6 {[%emt 0:00:10]} Nxg6 {[%emt 0:00:11]} 16. exf5 {[%emt 0:00:57]} Qxf5 {[%emt 0:00:48]} 17. d4 {[%emt 0:00:58]} exd4 {[%emt 0:00:47]} 18. cxd4 {[%emt 0:00:02]} Rae8 {[%emt 0:01:37]} 19. Qd2 {[%emt 0:00:31]} h5 {[%emt 0:01:58]} 20. Ne3 {[%emt 0:00:21]} Qg5 {[%emt 0:00:22]} 21. f4 {[%emt 0:00:40]} Qxg3 {[%emt 0:00:29]} 22. Rf3 {[%emt 0:00:57]} Qh4 {[%emt 0:00:27]} 23. Nd5 {[%emt 0:00:44]} Re4 {[%emt 0:01:00]} 24. Qd3 {[%emt 0:00:47]} Nxd4 {[%emt 0:00:35]} 25. Qxe4 {[%emt 0:00:43]} Nxf4 {[%emt 0:00:38]} 26. Rxf4 {[%emt 0:01:16]} Nf3+ {[%emt 0:00:05]} 27. Kh1 {[%emt 0:00:11]} Rxf4 {[%emt 0:00:06]} 28. Nxf4 {[%emt 0:00:29]} 1-0

[Event "European Corporate Championship 2022"]
[Site "Rotterdam"]
[Date "2022.06.19"]
[Round "5.15"]
[White "Toledano Llinares, Juan A."]
[Black "Liefrink, Feike"]
[Result "1/2-1/2"]
[ECO "C50"]
[WhiteElo "2252"]
[BlackElo "1927"]
[Annotator "TA"]
[PlyCount "75"]
[EventDate "2022.06.18"]
[EventType "team-tourn"]
[EventCountry "NED"]
[SourceTitle "playchess.com"]
[Source "ChessBase"]
[SourceQuality "1"]
[TimeControl "900+5"]

{[%evp 13,75,-2,75,64,49,-1,-3,-24,-18,-48,-29,-51,31,26,29,30,21,-106,22,22,28,-7,20,13,24,0,60,-28,-32,-31,-25,-54,-23,-64,-61,-182,-150,-168,-127,-199,-142,-147,-151,-180,-161,-220,-153,-153,-146,-154,-154,-154,-151,-152,-151,-157,-134,-133,-141,-143,-128,-195,-145,-147]} 1. e4 {[%emt 0:00:03]} e5 {[%emt 0:00:01]} 2. Nf3 {[%emt 0:00:01]} Nc6 {[%emt 0:00:01]} 3. Bc4 {[%emt 0:00:05]} Bc5 {[%emt 0:00:13]} 4. d3 {[%emt 0:00:02]} Nf6 {[%emt 0:00:06]} 5. Nc3 {[%emt 0:00:01]} d6 {[%emt 0:00:06]} 6. Bg5 {[%emt 0:00:05]} Bg4 {[%emt 0:00:58]} 7. h3 {[%emt 0:00:19]} Bh5 {[%emt 0:00:28]} (7... Bxf3 $11 8. Qxf3 Nd4) 8. g4 $16 {[%emt 0:00:33] C50: Hungarian Defence and Giuoco Pianissimo.} Bg6 {[%emt 0:00:12]} 9. Nh4 {[%emt 0:00:06]} (9. Nd5 $14) 9... h6 {[%emt 0:01:32]} 10. Nxg6 {[%emt 0:00:34] The position is equal.} fxg6 {[%emt 0:00:04]} 11. Bh4 {[%emt 0:00:14] [#]} Nd4 $146 {[%emt 0:00:39]} ({Predecessor:} 11... g5 12. Bg3 Qe7 13. Bb5 a6 14. Ba4 Rf8 15. Qd2 b5 16. Bb3 Nd4 17. O-O-O O-O-O 18. a3 Nxb3+ 19. cxb3 Rf7 20. Rhf1 g6 21. Kb1 Qe6 22. Qc2 Rdf8 23. Rc1 {½-½ (23) Ibarra,D-Bordalier,S Buenos Aires 2002}) 12. Nb5 {[%emt 0:01:20]} c6 {[%emt 0:00:46]} (12... Nxb5 $15 13. Bxb5+ c6) 13. Nxd4 $14 {[%emt 0:00:07]} Bxd4 {[%emt 0:00:02]} 14. c3 {[%emt 0:00:12]} Bb6 {[%emt 0:00:06]} 15. Qd2 {[%emt 0:00:55] [#]} (15. Bg3 $11 {remains equal.}) 15... Qd7 {[%emt 0:02:26]} ({Black should try} 15... Nxe4 $1 $17 {[%mdl 512]} 16. Bxd8 (16. dxe4 Qxh4 17. O-O-O O-O-O $17) 16... Nxd2 17. Bxb6 Nxc4 18. dxc4 axb6) 16. O-O-O {[%emt 0:00:39]} O-O-O {[%emt 0:08:45]} 17. Rhf1 {[%emt 0:00:42]} g5 {[%emt 0:00:00]} 18. Bg3 {[%emt 0:00:03]} Rhe8 {[%emt 0:00:00]} 19. f3 {[%emt 0:01:09]} Nh7 {[%emt 0:00:00]} (19... d5 $11 20. Bb3 Qe7) 20. Bf2 {[%emt 0:00:59]} ({Better is} 20. d4 $14) 20... Bxf2 $11 {[%emt 0:00:00]} 21. Qxf2 {[%emt 0:00:03]} Kb8 {[%emt 0:00:00]} 22. Bb3 {[%emt 0:01:02]} Nf8 {[%emt 0:00:00]} 23. Ba4 {[%emt 0:00:02]} Ng6 {[%emt 0:00:00]} 24. h4 {[%emt 0:00:36]} (24. d4 $15) 24... Nxh4 {[%emt 0:00:00] aiming for ...Rf8.} 25. d4 {[%emt 0:00:03]} Qe7 {[%emt 0:00:00]} 26. Bb3 {[%emt 0:00:36]} (26. d5 $17) 26... Ng6 {[%emt 0:00:00]} ({Black should play} 26... Rf8 $19 27. Rd3 Ng6) 27. d5 {[%emt 0:00:19]} c5 {[%emt 0:00:00]} 28. Ba4 {[%emt 0:00:02]} Rf8 {[%emt 0:00:00][%cal Be8f8,Bf8f6,Bf6f7][%mdl 32]} 29. c4 {[%emt 0:00:35]} (29. Rg1 {keeps fighting.}) 29... Nf4 {[%emt 0:00:00]} 30. Kb1 {[%emt 0:00:38]} Qc7 {[%emt 0:00:00]} 31. Qe3 {[%emt 0:00:16]} Qa5 {[%emt 0:00:00]} 32. Bb3 {[%emt 0:00:31]} Rf6 {[%emt 0:00:00]} 33. Rc1 {[%emt 0:00:15]} Rdf8 {[%emt 0:00:00]} 34. Rc3 {[%emt 0:00:12]} Ng2 {[%emt 0:00:00]} 35. Qg1 {[%emt 0:01:31] [#]} Nh4 {[%emt 0:00:00][%cal Rh4f3]} 36. Bd1 {[%emt 0:00:02]} R6f7 {[%emt 0:00:00]} 37. Qe3 {[%emt 0:00:25]} (37. Qh2 $17) 37... Ng2 {[%emt 0:00:00]} (37... Rf4 $19 38. Rf2 R4f7) 38. Qg1 {[%emt 0:00:15] Weighted Error Value: White=0.32/Black=0.29 (precise)} 1/2-1/2